bitfinex-derivatives/quotes_SOLF0:USTF0_20250907
["timestamp","ask_amount","ask_price","bid_price","bid_amount"]
[1757235384598,13.34592942,203.5,203.43,4.42]
[1757235384797,7.82,203.5,203.44,4.38188055]
[1757235384994,5.52592942,203.51,203.45,4.38188055]
[1757235385204,7.47,203.5,203.43,4.42]
[1757235385403,7.47,203.5,203.44,4.38234861]
[1757235385604,12.99592942,203.51,203.45,8.80234861]
[1757235385804,7.47,203.5,203.47,4.42]
[1757235386104,7.47,203.5,203.44,4.423]
[1757235386300,7.47,203.5,203.45,4.38311589]
[1757235386503,7.47,203.5,203.47,4.42]
[1757235387301,5.52592942,203.52,203.46,4.42]
[1757235387508,12.99592942,203.52,203.47,4.38343735]
[1757235387806,7.47,203.51,203.48,8.80343735]
[1757235388005,7.47,203.51,203.48,4.42]
[1757235391002,5.52592942,203.52,203.48,4.42]
[1757235391199,5.52592942,203.52,203.46,8.8425]
[1757235391403,7.47,203.52,203.48,4.42]
[1757235391705,7.47,203.52,203.49,8.8180745]
[1757235391903,7.47,203.52,203.49,4.42]
[1757235392103,7.47,203.52,203.5,4.51999283]
[1757235392305,7.47,203.52,203.49,4.42]
[1757235392504,7.47,203.52,203.5,4.51967004]
[1757235392704,5.52592942,203.53,203.49,4.42]
[1757235392905,7.47,203.52,203.5,4.51967004]
[1757235393106,5.52592942,203.53,203.49,4.42]
[1757235393309,5.52592942,203.53,203.5,4.51944734]
[1757235393511,5.52592942,203.51,203.49,4.42]
[1757235393812,12.99592942,203.51,203.5,4.51944729]
[1757235395105,5.52592942,203.51,203.5,8.93944729]
[1757235395306,5.52592942,203.52,203.5,4.51944729]
[1757235395606,7.47,203.52,203.51,4.51836299]
[1757235398509,5.52592942,203.53,203.52,4.42]
[1757235398709,5.52592942,203.54,203.52,8.93836299]
[1757235398909,12.99592942,203.54,203.52,4.42]
[1757235399210,5.52592942,203.54,203.47,2.39198731]
[1757235399415,5.52592942,203.56,203.5,2.39198731]
[1757235399606,12.99592942,203.56,203.51,4.51567886]
[1757235399805,5.52592942,203.56,203.53,4.42]
[1757235400009,2.39198731,203.63,203.54,8.93567886]
[1757235400010,5.52592942,203.57,203.54,8.93567886]
[1757235400209,7.47,203.57,203.54,4.42]
[1757235402615,7.47,203.57,203.54,1.34808734]
[1757235403112,5.52592942,203.58,203.54,1.34808734]
[1757235403315,7.47,203.57,203.54,1.34808734]
[1757235403612,5.52592942,203.59,203.54,1.34808734]
[1757235403817,7.47,203.58,203.54,1.34808734]
[1757235404019,5.52592942,203.59,203.54,1.34808734]
[1757235404516,7.47,203.58,203.54,1.34808734]
[1757235404713,5.52592942,203.59,203.54,1.34808734]
[1757235404914,7.47,203.58,203.54,1.34808734]
[1757235405112,5.52592942,203.59,203.54,1.34808734]
[1757235405315,7.47,203.59,203.54,1.34808734]
[1757235405720,5.52592942,203.6,203.54,1.34808734]
[1757235406823,7.47,203.59,203.54,1.34808734]
[1757235408023,5.52592942,203.6,203.54,1.34808734]
[1757235408423,7.47,203.59,203.54,1.34808734]
[1757235408725,5.52592942,203.6,203.54,1.34808734]
[1757235409226,7.8,203.59,203.54,1.34808734]
[1757235410519,5.52592942,203.6,203.54,1.34808734]
[1757235410719,7.8,203.56,203.49,1.35]
[1757235412729,7.8,203.56,203.5,4.50455841]
[1757235413024,7.8,203.56,203.49,1.35]
[1757235413219,7.8,203.56,203.5,4.5045398]
[1757235413427,7.8,203.56,203.49,1.35]
[1757235413625,7.8,203.56,203.5,4.5045398]
[1757235413826,7.8,203.56,203.49,1.35]
[1757235414030,7.8,203.56,203.5,4.5045398]
[1757235414215,7.8,203.56,203.49,1.35]
[1757235414420,7.8,203.56,203.5,4.50453375]
[1757235414619,7.8,203.56,203.49,1.35]
[1757235414824,7.8,203.56,203.5,4.50453375]
[1757235415025,7.8,203.56,203.49,1.35]
[1757235415225,7.8,203.56,203.5,4.50454025]
[1757235415425,7.8,203.56,203.49,1.35]
[1757235415626,7.8,203.56,203.5,4.50454025]
[1757235415823,7.8,203.56,203.49,1.35]
[1757235416024,7.8,203.56,203.5,4.50454025]
[1757235416324,7.8,203.56,203.49,1.35]
[1757235416523,7.8,203.56,203.5,4.50455932]
[1757235416718,7.8,203.56,203.49,1.35]
[1757235416918,7.8,203.56,203.5,4.50455932]
[1757235417121,7.8,203.56,203.49,1.35]
[1757235417323,7.8,203.56,203.5,4.50458561]
[1757235417518,7.8,203.56,203.49,1.35]
[1757235417722,7.8,203.56,203.5,4.50458561]
[1757235417929,7.8,203.56,203.49,1.35]
[1757235418120,7.8,203.56,203.5,4.50868525]
[1757235418322,7.8,203.56,203.49,1.35]
[1757235418524,7.8,203.56,203.5,4.50890276]
[1757235418826,7.8,203.56,203.49,1.35]
[1757235419022,7.8,203.56,203.5,4.50872963]
[1757235419226,7.8,203.56,203.49,1.35]
[1757235419432,7.8,203.56,203.5,4.50875187]
[1757235419627,7.8,203.56,203.49,1.35]
[1757235419836,7.8,203.56,203.5,4.50875187]
[1757235420133,7.8,203.56,203.49,1.35]
[1757235420326,7.8,203.56,203.5,4.50851105]
[1757235420529,7.8,203.56,203.49,1.35]
[1757235420822,7.8,203.56,203.5,4.50851105]
[1757235421128,7.8,203.56,203.49,1.35]
[1757235425232,7.8,203.56,203.5,4.51161422]
[1757235425433,7.8,203.56,203.49,1.35]
[1757235425732,7.8,203.56,203.5,4.51161422]
[1757235426034,7.8,203.56,203.49,1.35]
[1757235426230,7.8,203.56,203.5,4.51255802]
[1757235426231,13.32592942,203.56,203.5,4.51255802]
[1757235426431,13.32592942,203.56,203.49,1.35]
[1757235426634,13.32592942,203.56,203.5,4.51255802]
[1757235426831,13.32592942,203.56,203.49,1.35]
[1757235427032,13.32592942,203.56,203.5,4.51255802]
[1757235427335,13.32592942,203.56,203.49,1.35]
[1757235427632,13.32592942,203.56,203.5,4.51360107]
[1757235427832,13.32592942,203.56,203.49,2.88038799]
[1757235428030,13.32592942,203.56,203.5,4.51360107]
[1757235428227,13.32592942,203.56,203.49,2.88038799]
[1757235428430,13.32592942,203.56,203.5,4.51476181]
[1757235428630,13.32592942,203.56,203.49,2.88038799]
[1757235428824,13.32592942,203.56,203.5,4.51476181]
[1757235429028,13.32592942,203.56,203.51,4.31514503]
[1757235429235,13.32592942,203.56,203.49,2.88038799]
[1757235429430,13.32592942,203.56,203.5,8.83215079]
[1757235429634,13.32592942,203.56,203.51,4.31624164]
[1757235429834,13.32592942,203.56,203.49,2.88038799]
[1757235430033,13.32592942,203.56,203.5,8.83215079]
[1757235430235,13.32592942,203.56,203.51,4.31624164]
[1757235430430,13.32592942,203.56,203.49,2.88038799]
[1757235430634,13.32592942,203.56,203.5,8.83387902]
[1757235430836,13.32592942,203.56,203.51,4.31708622]
[1757235431136,13.32592942,203.56,203.52,4.31785422]
[1757235431340,5.52592942,203.55,203.49,1.53038799]
[1757235431537,5.52592942,203.55,203.5,10.18545055]
[1757235431832,5.52592942,203.55,203.51,8.83545055]
[1757235432037,7.8,203.54,203.52,4.31785422]
[1757235432237,5.52592942,203.55,203.5,1.35]
[1757235432438,5.52592942,203.55,203.51,8.83665256]
[1757235432738,7.8,203.54,203.52,4.31844164]
[1757235433038,7.8,203.54,203.48,1.53038799]
[1757235433237,7.8,203.54,203.49,8.83811549]
[1757235433438,5.52592942,203.53,203.5,8.83811549]
[1757235433638,7.8,203.52,203.51,4.31915645]
[1757235436143,7.8,203.52,203.51,8.83946472]
[1757235437738,5.52592942,203.53,203.51,10.36985271]
[1757235437943,13.32592942,203.54,203.52,10.18914423]
[1757235438139,13.32592942,203.54,203.53,4.31915645]
[1757235438942,13.32592942,203.54,203.53,4.32041798]
[1757235443040,7.8,203.54,203.53,8.84105927]
[1757235452747,7.8,203.54,203.53,4.32041798]
[1757235462755,7.8,203.54,203.53,8.85221615]
[1757235467768,5.52592942,203.55,203.53,10.18221615]
[1757235467967,5.52592942,203.55,203.54,8.85221615]
[1757235468166,13.14592942,203.55,203.54,8.85221615]
[1757235471274,8.05,203.68,203.55,68.7677]
[1757235471473,8.05,203.68,203.62,1.53038799]
[1757235471669,8.05,203.7,203.64,1.53038799]
[1757235471875,8.05,203.7,203.66,1.53038799]
[1757235472074,8.05,203.73,203.67,8.85471057]
[1757235472271,55.21038799,203.76,203.68,10.38509856]
[1757235472575,1.53038799,203.7,203.69,9.41445977]
[1757235472775,9.58038799,203.7,203.61,1.53038799]
[1757235472974,8.05,203.67,203.6,8.92038799]
[1757235474171,8.05,203.67,203.62,1.53038799]
[1757235474371,1.53038799,203.68,203.62,1.53038799]
[1757235474973,8.05,203.67,203.62,1.53038799]
[1757235475176,1.53038799,203.68,203.62,1.53038799]
[1757235475575,8.05,203.67,203.62,1.53038799]
[1757235475770,1.53038799,203.68,203.62,1.53038799]
[1757235475976,8.05,203.67,203.62,1.53038799]
[1757235476377,1.53038799,203.68,203.62,1.53038799]
[1757235476575,8.05,203.69,203.62,1.53038799]
[1757235479281,8.05,203.69,203.63,1.53038799]
[1757235479980,8.05,203.69,203.61,7.39]
[1757235480180,8.05,203.69,203.63,1.53038799]
[1757235487587,8.05,203.69,203.61,7.39]
[1757235487789,8.05,203.69,203.62,4.93509011]
[1757235488087,8.05,203.69,203.61,7.39]
[1757235488287,8.05,203.69,203.62,4.93455492]
[1757235488488,8.05,203.69,203.61,7.39]
[1757235488689,8.05,203.69,203.62,4.93455492]
[1757235488985,8.05,203.69,203.61,7.39]
[1757235489186,8.05,203.69,203.62,4.93455492]
[1757235489384,8.05,203.69,203.61,7.39]
[1757235489585,8.05,203.69,203.62,4.93411346]
[1757235489786,8.05,203.69,203.61,7.39]
[1757235489988,8.05,203.69,203.62,4.93411494]
[1757235490187,8.05,203.69,203.61,7.39]
[1757235490389,8.05,203.69,203.62,4.93339323]
[1757235490582,8.05,203.69,203.61,7.39]
[1757235490886,8.05,203.69,203.62,4.93351592]
[1757235491085,8.05,203.69,203.61,7.39]
[1757235502904,8.05,203.69,203.62,4.93547522]
[1757235503102,8.05,203.69,203.61,7.39]
[1757235503406,8.05,203.69,203.62,4.93599983]
[1757235503703,8.05,203.69,203.61,7.39]
[1757235503905,8.05,203.69,203.62,4.93627875]
[1757235504106,8.05,203.69,203.61,7.39]
[1757235504407,8.05,203.69,203.62,4.9369026]
[1757235504607,8.05,203.69,203.61,7.39]
[1757235504903,8.05,203.69,203.62,4.93719345]
[1757235505096,8.05,203.69,203.61,7.39]
[1757235505297,8.05,203.69,203.62,4.93822774]
[1757235505497,8.05,203.69,203.61,7.39]
[1757235505694,8.05,203.69,203.62,4.93822774]
[1757235505905,8.05,203.69,203.61,7.39]
[1757235506105,8.05,203.69,203.62,4.93822774]
[1757235506308,8.05,203.69,203.61,7.39]
[1757235506607,8.05,203.69,203.62,4.93939216]
[1757235506797,8.05,203.69,203.61,7.39]
[1757235507004,8.05,203.69,203.62,4.93939216]
[1757235507202,8.05,203.69,203.63,4.94039177]
[1757235507403,8.05,203.69,203.61,7.39]
[1757235507602,8.05,203.69,203.62,4.94070016]
[1757235507802,8.05,203.69,203.63,4.94070016]
[1757235508002,8.05,203.69,203.61,7.39]
[1757235508308,8.05,203.69,203.62,4.94497616]
[1757235508605,8.05,203.69,203.63,4.94497616]
[1757235508807,8.05,203.69,203.61,7.39]
[1757235509002,8.05,203.69,203.62,4.94644641]
[1757235509207,8.05,203.69,203.61,2.38807064]
[1757235509208,8.05,203.69,203.63,12.56644641]
[1757235509409,8.05,203.69,203.63,7.62]
[1757235511108,8.05,203.69,203.64,4.9518042]
[1757235511308,8.05,203.69,203.61,2.38807064]
[1757235511504,5.48275415,203.7,203.62,16.95236688]
[1757235511803,7.55,203.69,203.63,4.9520853]
[1757235512108,5.48275415,203.7,203.64,12.5720853]
[1757235512308,7.55,203.69,203.64,7.62]
[1757235512508,5.48275415,203.7,203.64,7.62]
[1757235512903,7.55,203.69,203.64,7.62]
[1757235513108,5.48275415,203.69,203.64,7.62]
[1757235513305,7.55,203.68,203.64,7.62]
[1757235514010,5.48275415,203.69,203.64,7.62]
[1757235514211,5.48275415,203.68,203.64,7.62]
[1757235514412,7.55,203.67,203.64,7.62]
[1757235514611,7.55,203.67,203.6,7.62]
[1757235514809,7.55,203.67,203.62,7.62]
[1757235515008,7.55,203.67,203.64,7.62]
[1757235515210,13.03275415,203.67,203.6,7.62]
[1757235515506,13.03275415,203.67,203.61,9.13966568]
[1757235515705,13.03275415,203.67,203.63,7.62]
[1757235515905,13.03275415,203.67,203.65,7.62]
[1757235516106,7.55,203.67,203.66,9.1561907]
[1757235518413,7.55,203.67,203.66,4.40033207]
[1757235521514,8.28889414,203.69,203.67,7.62]
[1757235521713,8.28889414,203.69,203.68,12.02453156]
[1757235521917,15.83889414,203.7,203.68,12.02453156]
[1757235522116,15.83889414,203.7,203.69,4.40453156]
[1757235522312,15.83889414,203.7,203.68,7.62]
[1757235523315,7.55,203.7,203.69,4.86842102]
[1757235524220,7.55,203.7,203.68,7.62]
[1757235531122,7.55,203.7,203.64,7.99]
[1757235531323,5.51920133,203.66,203.65,17.28507397]
[1757235533426,5.51920133,203.68,203.65,17.28507397]
[1757235533624,5.51920133,203.68,203.67,7.99]
[1757235533821,5.51920133,203.68,203.67,17.28507397]
[1757235534421,5.51920133,203.68,203.67,17.28428546]
[1757235535923,13.49920133,203.68,203.67,4.86460045]
[1757235536123,8.27880199,203.68,203.63,7.99]
[1757235536323,5.51856148,203.66,203.64,17.28686713]
[1757235536524,13.49856148,203.66,203.64,7.99]
[1757235536728,5.51856148,203.66,203.61,7.99]
[1757235536923,5.51856148,203.66,203.63,7.99]
[1757235537132,5.51856148,203.66,203.6,2.38807064]
[1757235537133,5.51856148,203.66,203.65,7.99]
[1757235538528,5.51856148,203.66,203.65,12.42074912]
[1757235538729,13.49856148,203.67,203.65,12.42074912]
[1757235539029,13.49856148,203.67,203.65,7.99]
[1757235539229,5.51856148,203.66,203.65,7.99]
[1757235539429,5.51856148,203.66,203.65,12.42066284]
[1757235541634,5.51856148,203.66,203.65,12.42057637]
[1757235542626,5.51856148,203.66,203.65,7.99]
[1757235544430,13.49856148,203.67,203.65,7.99]
[1757235544630,7.98,203.66,203.65,7.99]
[1757235544827,7.98,203.66,203.6,6.80767064]
[1757235545027,7.98,203.66,203.61,9.0480516]
[1757235545325,7.98,203.66,203.62,9.0480516]
[1757235545532,7.98,203.66,203.64,7.99]
[1757235547434,7.98,203.66,203.64,9.51826378]
[1757235548033,7.98,203.66,203.64,7.99]
[1757235549032,5.51856148,203.67,203.65,1.52826378]
[1757235549237,5.51856148,203.67,203.66,7.99]
[1757235549536,5.51824614,203.7,203.67,7.99]
[1757235549735,5.51824614,203.7,203.69,9.51826378]
[1757235550430,8.27880199,203.73,203.69,1.52826378]
[1757235550630,16.25880199,203.73,203.7,7.99]
[1757235551336,7.98,203.73,203.7,7.99]
[1757235553236,7.98,203.73,203.71,1.52826378]
[1757235554934,8.27880199,203.74,203.71,1.52826378]
[1757235555232,7.98,203.73,203.7,9.51826378]
[1757235555632,8.27880199,203.74,203.7,9.51826378]
[1757235555838,7.98,203.73,203.7,9.51826378]
[1757235556733,8.27880199,203.74,203.7,9.51826378]
[1757235557237,7.98,203.73,203.7,9.51826378]
[1757235557433,7.98,203.73,203.71,7.99]
[1757235557635,8.27880199,203.76,203.71,7.99]
[1757235557837,8.27880199,203.76,203.7,1.52826378]
[1757235557838,7.98,203.75,203.7,9.51826378]
[1757235558035,8.27880199,203.76,203.71,4.42560265]
[1757235558241,7.98,203.76,203.7,9.51826378]
[1757235558436,7.98,203.76,203.71,4.42467021]
[1757235558742,7.98,203.76,203.7,9.51826378]
[1757235559044,7.98,203.76,203.71,4.42467021]
[1757235559244,7.98,203.76,203.7,9.51826378]
[1757235559537,1.52826378,203.75,203.68,1.52826378]
[1757235559738,7.46,203.74,203.69,9.03274074]
[1757235559948,7.46,203.74,203.7,4.42408233]
[1757235560240,7.46,203.74,203.68,1.52826378]
[1757235560442,1.52826378,203.75,203.69,9.03146241]
[1757235560642,1.52826378,203.75,203.7,4.42322909]
[1757235560844,7.46,203.74,203.68,8.92826378]
[1757235561149,7.46,203.74,203.69,9.03146219]
[1757235561444,1.52826378,203.75,203.7,4.42322898]
[1757235561742,7.46,203.74,203.68,8.92826378]
[1757235561941,1.52826378,203.75,203.69,4.42289381]
[1757235562137,7.46,203.74,203.7,4.42289381]
[1757235562333,7.46,203.74,203.68,8.92826378]
[1757235562633,7.46,203.74,203.69,4.42262595]
[1757235562837,7.46,203.74,203.68,8.92826378]
[1757235563135,7.46,203.74,203.69,4.42263817]
[1757235563440,7.46,203.74,203.68,8.92826378]
[1757235563642,7.46,203.73,203.69,11.82243762]
[1757235563842,7.46,203.74,203.68,1.52826378]
[1757235564045,15.73880199,203.74,203.68,1.52826378]
[1757235566146,15.73880199,203.74,203.68,8.92826378]
[1757235568650,15.73880199,203.74,203.7,1.52826378]
[1757235569049,8.27880199,203.74,203.7,1.52826378]
[1757235569251,7.46,203.73,203.7,8.92826378]
[1757235569446,8.27880199,203.74,203.7,8.92826378]
[1757235569750,7.46,203.73,203.7,1.52826378]
[1757235570251,8.27880199,203.74,203.7,1.52826378]
[1757235571048,8.27880199,203.74,203.69,1.52826378]
[1757235571248,8.27880199,203.74,203.69,8.92826378]
[1757235572052,7.46,203.73,203.69,8.92826378]
[1757235572351,8.27880199,203.74,203.69,8.92826378]
[1757235572554,7.46,203.73,203.69,8.92826378]
[1757235572749,8.27880199,203.74,203.69,8.92826378]
[1757235573247,7.46,203.73,203.69,8.92826378]
[1757235573549,8.27880199,203.72,203.69,8.92826378]
[1757235573753,7.46,203.71,203.69,8.92826378]
[1757235574349,7.46,203.71,203.69,7.4]
[1757235575252,8.27880199,203.72,203.68,1.52826378]
[1757235575447,15.73880199,203.72,203.69,7.4]
[1757235575952,15.73880199,203.72,203.68,1.52826378]
[1757235576156,15.73880199,203.72,203.69,7.4]
[1757235578148,15.73880199,203.72,203.68,1.52826378]
[1757235578352,15.73880199,203.72,203.69,7.4]
[1757235579254,8.27880199,203.72,203.69,7.4]
[1757235579554,7.46,203.71,203.69,7.4]
[1757235584760,8.27880199,203.74,203.68,5.94616378]
[1757235584958,7.46,203.73,203.7,7.4]
[1757235585260,8.27880199,203.75,203.7,7.4]
[1757235585661,7.46,203.74,203.7,7.4]
[1757235585964,7.46,203.74,203.68,1.52826378]
[1757235591269,15.73880199,203.74,203.68,1.52826378]
[1757235592771,7.9,203.73,203.69,4.4473709]
[1757235592966,7.9,203.73,203.7,4.4473709]
[1757235593171,8.27880199,203.74,203.69,7.38]
[1757235593373,7.9,203.73,203.7,4.4473709]
[1757235593574,7.9,203.72,203.69,7.38]
[1757235593774,8.27880199,203.73,203.7,4.4484164]
[1757235593974,8.27880199,203.73,203.69,7.38]
[1757235594269,7.9,203.72,203.7,4.4484164]
[1757235594476,7.9,203.72,203.69,7.38]
[1757235594670,7.9,203.72,203.7,4.44948943]
[1757235594872,8.27880199,203.73,203.69,7.38]
[1757235595072,7.9,203.72,203.7,4.44948752]
[1757235595270,8.27880199,203.73,203.69,7.38]
[1757235595470,8.27880199,203.73,203.7,4.40546777]
[1757235595667,7.9,203.72,203.69,7.38]
[1757235595978,8.27880199,203.73,203.7,4.40546777]
[1757235596173,7.9,203.72,203.69,7.38]
[1757235596376,8.27880199,203.73,203.7,4.40546777]
[1757235596676,8.27880199,203.73,203.68,1.52826378]
[1757235596875,7.9,203.72,203.69,9.02435444]
[1757235597178,8.27880199,203.73,203.7,4.40545965]
[1757235597375,7.9,203.72,203.68,8.90826378]
[1757235597573,7.9,203.7,203.69,4.40545566]
[1757235597771,7.9,203.7,203.64,1.52826378]
[1757235597971,7.9,203.7,203.65,4.40699554]
[1757235597972,16.17880199,203.7,203.65,4.40699554]
[1757235598171,16.17880199,203.69,203.62,8.90826378]
[1757235598376,17.70706577,203.69,203.62,8.90826378]
[1757235599078,13.41949662,203.66,203.63,7.38]
[1757235600380,7.9,203.65,203.63,7.38]
[1757235603888,5.51949662,203.67,203.62,1.52826378]
[1757235604183,7.9,203.66,203.62,1.52826378]
[1757235604382,7.9,203.66,203.63,7.38]
[1757235604578,5.51949662,203.67,203.63,7.38]
[1757235604888,7.9,203.66,203.63,7.38]
[1757235606682,5.51949662,203.67,203.63,7.38]
[1757235606880,7.9,203.66,203.63,7.38]
[1757235607385,5.51949662,203.67,203.63,7.38]
[1757235607584,7.9,203.66,203.63,7.38]
[1757235607983,5.51949662,203.67,203.63,7.38]
[1757235608286,7.9,203.66,203.63,7.38]
[1757235608587,5.51949662,203.67,203.63,7.38]
[1757235609187,7.9,203.66,203.63,7.38]
[1757235609391,5.51949662,203.67,203.63,7.38]
[1757235609689,7.9,203.66,203.63,7.38]
[1757235609987,7.9,203.66,203.6,7.38]
[1757235610191,13.41949662,203.67,203.62,7.38]
[1757235610682,5.51949662,203.69,203.64,7.38]
[1757235610887,5.51949662,203.69,203.63,7.38]
[1757235611086,13.41949662,203.7,203.63,7.38]
[1757235611888,13.41949662,203.7,203.64,4.4187]
[1757235612089,13.41949662,203.7,203.63,7.38]
[1757235612285,7.9,203.68,203.63,7.38]
[1757235612485,5.51949662,203.68,203.62,2.3883904]
[1757235612789,5.51949662,203.68,203.63,4.37027373]
[1757235613087,5.51949662,203.68,203.64,7.38]
[1757235613481,13.41949662,203.67,203.64,7.38]
[1757235613881,7.9,203.66,203.64,7.38]
[1757235618586,7.9,203.66,203.63,4.4189]
[1757235618794,7.9,203.66,203.64,7.38]
[1757235619294,7.9,203.66,203.63,4.4189]
[1757235619493,7.9,203.66,203.64,7.88]
[1757235623196,5.51949662,203.68,203.61,6.8077904]
[1757235623495,13.35949662,203.69,203.63,7.88]
[1757235623899,7.84,203.69,203.63,12.299]
[1757235628099,7.84,203.69,203.63,7.88]
[1757235629399,13.35949662,203.69,203.63,7.88]
[1757235631198,13.35949662,203.68,203.6,7.88]
[1757235631396,7.84,203.66,203.6,7.88]
[1757235631799,13.35949662,203.66,203.6,7.88]
[1757235634903,7.84,203.66,203.6,7.88]
[1757235637206,13.35949662,203.66,203.6,7.88]
[1757235641213,5.51949662,203.66,203.57,7.88]
[1757235641504,13.35949662,203.65,203.57,7.88]
[1757235645107,5.51949662,203.64,203.57,7.88]
[1757235645309,13.35949662,203.64,203.57,7.88]
[1757235653615,7.84,203.64,203.57,7.88]
[1757235656514,13.35949662,203.64,203.52,2.3883904]
[1757235656720,7.86,203.62,203.53,7.4]
[1757235658226,7.86,203.62,203.53,11.8211]
[1757235658421,7.86,203.62,203.54,7.4]
[1757235660620,7.86,203.62,203.54,4.4209]
[1757235660826,7.86,203.62,203.55,7.4]
[1757235669436,9.38951084,203.62,203.55,8.92951084]
[1757235672530,7.86,203.62,203.55,8.92951084]
[1757235674231,7.86,203.62,203.6,7.4]
[1757235675435,5.51949662,203.65,203.6,7.4]
[1757235675635,7.86,203.64,203.6,7.4]
[1757235676032,5.51949662,203.65,203.59,1.52951084]
[1757235677433,7.86,203.64,203.59,1.52951084]
[1757235678238,5.51949662,203.65,203.59,1.52951084]
[1757235678536,7.86,203.64,203.59,1.52951084]
[1757235678730,5.51949662,203.65,203.59,8.92951084]
[1757235678929,7.86,203.64,203.59,8.92951084]
[1757235679128,7.48,203.64,203.59,8.92951084]
[1757235679730,7.48,203.64,203.59,7.4]
[1757235680036,5.51949662,203.65,203.59,7.4]
[1757235680236,7.48,203.64,203.59,7.4]
[1757235681039,5.51949662,203.65,203.59,7.4]
[1757235681534,7.48,203.64,203.59,7.4]
[1757235682737,7.48,203.64,203.6,4.41457726]
[1757235682934,7.48,203.64,203.59,7.4]
[1757235683134,7.48,203.64,203.6,4.41457726]
[1757235683334,5.51949662,203.65,203.59,7.4]
[1757235683534,5.51949662,203.65,203.6,4.41492191]
[1757235683735,5.51949662,203.65,203.59,7.4]
[1757235683936,5.51949662,203.65,203.6,4.41492191]
[1757235684138,5.51949662,203.65,203.59,7.4]
[1757235684336,7.48,203.64,203.6,4.41522447]
[1757235684533,7.48,203.64,203.59,7.4]
[1757235684735,5.51949662,203.65,203.6,4.41529051]
[1757235684931,5.51949662,203.65,203.59,7.4]
[1757235685130,7.48,203.64,203.6,4.41529051]
[1757235685342,5.51949662,203.65,203.59,7.4]
[1757235685639,7.48,203.64,203.6,4.41568639]
[1757235685840,5.51949662,203.65,203.59,7.4]
[1757235686040,7.48,203.64,203.6,4.41568639]
[1757235686242,7.48,203.64,203.59,7.4]
[1757235686544,7.48,203.64,203.6,4.41611384]
[1757235686737,5.51949662,203.65,203.59,7.4]
[1757235686934,5.51949662,203.65,203.6,4.41611384]
[1757235687136,7.48,203.63,203.59,7.4]
[1757235687338,7.48,203.64,203.6,4.4162564]
[1757235687532,5.51949662,203.65,203.59,7.4]
[1757235687738,7.48,203.64,203.6,4.41629391]
[1757235687936,5.51949662,203.65,203.59,7.4]
[1757235688138,12.99949662,203.64,203.6,4.41629391]
[1757235688336,5.51949662,203.64,203.59,7.4]
[1757235688538,7.48,203.63,203.6,4.41716572]
[1757235688740,7.48,203.63,203.59,7.4]
[1757235688942,7.48,203.63,203.6,4.41716572]
[1757235689138,7.48,203.63,203.61,4.41733758]
[1757235689340,5.51949662,203.64,203.59,7.4]
[1757235689539,7.48,203.63,203.6,4.41736189]
[1757235689736,5.51949662,203.64,203.61,4.41736189]
[1757235690045,7.48,203.63,203.59,7.4]
[1757235690245,5.51949662,203.64,203.6,4.41745188]
[1757235690543,5.51949662,203.64,203.61,4.41745188]
[1757235690748,7.48,203.63,203.59,7.4]
[1757235690941,5.51949662,203.64,203.6,4.41747199]
[1757235691246,5.51949662,203.64,203.61,4.41747199]
[1757235691441,1.52951084,203.62,203.55,7.51]
[1757235691643,7.48,203.59,203.52,135.70287075]
[1757235691846,1.52951084,203.58,203.52,129.72238159]
[1757235692049,9.00951084,203.58,203.53,7.51]
[1757235692241,9.00951084,203.58,203.52,129.72238159]
[1757235692547,1.52951084,203.58,203.52,129.72238159]